[Event "Titled Tuesday Blitz February 14 Early 2023"]
[White "Tologon tegin, Semetei"]
[Black "Kanyamarala, Tarun"]
[WhiteFideId "13800574"]
[BlackFideId "45004714"]
[WhiteElo "2372"]
[BlackElo "2342"]
[Result "0-1"]
[Round "10"]
[TimeControl "180+2"]
[Date "2023.02.14"]
[WhiteClock "0:00:07"]
[BlackClock "0:00:57"]

1. Nf3 {[%clk 0:02:57]}  d5 {[%clk 0:02:52]} 2. g3 {[%clk 0:02:56]}  g6 {[%clk 0:02:51]} 3. Bg2 {[%clk 0:02:54]}  Bg7 {[%clk 0:02:50]} 4. O-O {[%clk 0:02:54]}  c5 {[%clk 0:02:46]} 5. c4 {[%clk 0:02:54]}  d4 {[%clk 0:02:45]} 6. e3 {[%clk 0:02:55]}  Nc6 {[%clk 0:02:44]} 7. exd4 {[%clk 0:02:55]}  cxd4 {[%clk 0:02:45]} 8. d3 {[%clk 0:02:53]}  Nf6 {[%clk 0:02:46]} 9. Re1 {[%clk 0:02:52]}  O-O {[%clk 0:02:46]} 10. Bf4 {[%clk 0:02:51]}  Nd7 {[%clk 0:02:44]} 11. Qc1 {[%clk 0:02:47]}  e5 {[%clk 0:02:41]} 12. Bh6 {[%clk 0:02:47]}  Nc5 {[%clk 0:02:41]} 13. Bxg7 {[%clk 0:02:45]}  Kxg7 {[%clk 0:02:35]} 14. Qd2 {[%clk 0:02:41]}  Re8 {[%clk 0:02:28]} 15. b4 {[%clk 0:02:40]}  Nd7 {[%clk 0:02:26]} 16. b5 {[%clk 0:02:39]}  Ncb8 {[%clk 0:02:26]} 17. a4 {[%clk 0:02:35]}  a5 {[%clk 0:02:24]} 18. Na3 {[%clk 0:02:34]}  Qc7 {[%clk 0:02:22]} 19. Nc2 {[%clk 0:02:31]}  Nf6 {[%clk 0:02:14]} 20. Re2 {[%clk 0:02:19]}  Bg4 {[%clk 0:02:11]} 21. h3 {[%clk 0:02:18]}  Bxf3 {[%clk 0:02:11]} 22. Bxf3 {[%clk 0:02:19]}  Nbd7 {[%clk 0:02:11]} 23. Bg2 {[%clk 0:02:08]}  Nc5 {[%clk 0:02:10]} 24. Qd1 {[%clk 0:02:02]}  e4 {[%clk 0:02:04]} 25. Nxd4 {[%clk 0:01:57]}  exd3 {[%clk 0:02:02]} 26. Rxe8 {[%clk 0:01:56]}  Rxe8 {[%clk 0:02:01]} 27. Nb3 {[%clk 0:01:43]}  Re2 {[%clk 0:01:50]} 28. Bf1 {[%clk 0:01:28]}  Rb2 {[%clk 0:01:47]} 29. Nxc5 {[%clk 0:01:03]}  Qxc5 {[%clk 0:01:45]} 30. Qf3 {[%clk 0:01:03]}  Ne4 {[%clk 0:01:41]} 31. Qe3 {[%clk 0:00:15]}  Qxe3 {[%clk 0:01:29]} 32. fxe3 {[%clk 0:00:16]}  d2 {[%clk 0:01:22]} 33. Be2 {[%clk 0:00:15]}  Nxg3 {[%clk 0:01:16]} 34. Bf3 {[%clk 0:00:15]}  Nf5 {[%clk 0:01:15]} 35. Bxb7 {[%clk 0:00:08]}  Nxe3 {[%clk 0:01:12]} 36. Bf3 {[%clk 0:00:09]}  Rc2 {[%clk 0:01:02]} 37. Ra3 {[%clk 0:00:08]}  Nxc4 {[%clk 0:00:58]} 38. Rd3 {[%clk 0:00:07]}  Ne5 {[%clk 0:00:57]} 0-1


[Site "https://www.chess.com"]

[Event "Titled Tuesday Blitz February 14 Early 2023"]
[White "Bettalli, Francesco"]
[Black "Manelyuk, Daniil"]
[WhiteFideId "2816453"]
[BlackFideId "44173920"]
[WhiteElo "2252"]
[BlackElo "2302"]
[Result "0-1"]
[Round "10"]
[TimeControl "180+2"]
[Date "2023.02.14"]
[WhiteClock "0:00:33"]
[BlackClock "0:00:11"]

1. d4 {[%clk 0:02:59]}  Nf6 {[%clk 0:02:59]} 2. Nc3 {[%clk 0:03:00]}  d5 {[%clk 0:02:52]} 3. Bf4 {[%clk 0:03:00]}  g6 {[%clk 0:02:51]} 4. e3 {[%clk 0:02:57]}  Bg7 {[%clk 0:02:51]} 5. Be2 {[%clk 0:02:56]}  O-O {[%clk 0:02:52]} 6. h4 {[%clk 0:02:56]}  h5 {[%clk 0:02:51]} 7. Nf3 {[%clk 0:02:55]}  Re8 {[%clk 0:02:49]} 8. Ne5 {[%clk 0:02:53]}  Nbd7 {[%clk 0:02:48]} 9. Qd2 {[%clk 0:02:52]}  c5 {[%clk 0:02:44]} 10. O-O-O {[%clk 0:02:51]}  c4 {[%clk 0:02:44]} 11. g4 {[%clk 0:02:48]}  Nxe5 {[%clk 0:02:44]} 12. dxe5 {[%clk 0:02:49]}  Nxg4 {[%clk 0:02:42]} 13. Nxd5 {[%clk 0:02:40]}  Be6 {[%clk 0:02:32]} 14. Bxc4 {[%clk 0:02:39]}  Rc8 {[%clk 0:02:29]} 15. Bb3 {[%clk 0:02:38]}  Nxe5 {[%clk 0:02:19]} 16. Qe2 {[%clk 0:02:36]}  Qa5 {[%clk 0:02:14]} 17. f3 {[%clk 0:02:26]}  b5 {[%clk 0:02:07]} 18. Rhg1 {[%clk 0:02:10]}  Nc4 {[%clk 0:02:00]} 19. c3 {[%clk 0:02:01]}  Nxb2 {[%clk 0:01:41]} 20. Qxb2 {[%clk 0:01:44]}  Bxd5 {[%clk 0:01:26]} 21. Bxd5 {[%clk 0:01:45]}  e6 {[%clk 0:01:15]} 22. Be4 {[%clk 0:01:34]}  Rxc3+ {[%clk 0:01:00]} 23. Kb1 {[%clk 0:01:33]}  Rc4 {[%clk 0:00:59]} 24. Be5 {[%clk 0:01:29]}  Bf8 {[%clk 0:00:18]} 25. Bxg6 {[%clk 0:01:15]}  fxg6 {[%clk 0:00:18]} 26. Rxg6+ {[%clk 0:01:16]}  Kh7 {[%clk 0:00:18]} 27. Rdg1 {[%clk 0:01:08]}  Rb4 {[%clk 0:00:17]} 28. Rg7+ {[%clk 0:01:05]}  Bxg7 {[%clk 0:00:16]} 29. Rxg7+ {[%clk 0:01:06]}  Kh6 {[%clk 0:00:13]} 30. Bf4+ {[%clk 0:01:05]}  Rxf4 {[%clk 0:00:13]} 31. Qe5 {[%clk 0:00:38]}  Qe1+ {[%clk 0:00:11]} 32. Kb2 {[%clk 0:00:36]}  Qd2+ {[%clk 0:00:11]} 33. Kb3 {[%clk 0:00:33]}  Rb4+ {[%clk 0:00:10]} 34. Ka3 {[%clk 0:00:33]}  Ra4+ {[%clk 0:00:10]} 35. Kb3 {[%clk 0:00:33]}  Qb4+ {[%clk 0:00:10]} 36. Kc2 {[%clk 0:00:34]}  Rxa2+ {[%clk 0:00:11]} 37. Kd3 {[%clk 0:00:33]}  Qc4# {[%clk 0:00:11]} 0-1


[Site "https://www.chess.com"]

[Event "Titled Tuesday Blitz February 14 Early 2023"]
[White "Maksimenko, Viktor"]
[Black "Ramirez Allo, Eduardo"]
[WhiteFideId "13710478"]
[BlackFideId "2224178"]
[WhiteElo "2196"]
[BlackElo "2274"]
[Result "1/2-1/2"]
[Round "10"]
[TimeControl "180+2"]
[Date "2023.02.14"]
[WhiteClock "0:00:05"]
[BlackClock "0:00:04"]

1. d4 {[%clk 0:03:00]}  Nf6 {[%clk 0:03:00]} 2. c4 {[%clk 0:03:00]}  c5 {[%clk 0:03:00]} 3. d5 {[%clk 0:03:00]}  b5 {[%clk 0:03:01]} 4. cxb5 {[%clk 0:03:01]}  a6 {[%clk 0:03:01]} 5. bxa6 {[%clk 0:03:02]}  d6 {[%clk 0:03:02]} 6. Nc3 {[%clk 0:03:02]}  g6 {[%clk 0:03:02]} 7. e4 {[%clk 0:03:02]}  Bg7 {[%clk 0:03:03]} 8. Bb5+ {[%clk 0:03:01]}  Nbd7 {[%clk 0:03:03]} 9. a4 {[%clk 0:03:01]}  Bxa6 {[%clk 0:03:01]} 10. Bxa6 {[%clk 0:03:00]}  Rxa6 {[%clk 0:03:02]} 11. Nf3 {[%clk 0:03:00]}  O-O {[%clk 0:03:02]} 12. O-O {[%clk 0:03:00]}  Qb6 {[%clk 0:03:02]} 13. Ra3 {[%clk 0:02:59]}  Rb8 {[%clk 0:03:02]} 14. Qe2 {[%clk 0:02:59]}  Ne8 {[%clk 0:02:58]} 15. h3 {[%clk 0:02:55]}  Nc7 {[%clk 0:02:56]} 16. Nd2 {[%clk 0:02:52]}  Qa7 {[%clk 0:02:52]} 17. Qd3 {[%clk 0:02:20]}  Rab6 {[%clk 0:02:45]} 18. Nc4 {[%clk 0:02:17]}  Rb4 {[%clk 0:02:45]} 19. Nb5 {[%clk 0:01:56]}  Qb7 {[%clk 0:02:04]} 20. Na5 {[%clk 0:01:37]}  Qb6 {[%clk 0:01:53]} 21. Nc6 {[%clk 0:01:37]}  Ne5 {[%clk 0:01:48]} 22. Nxe5 {[%clk 0:00:53]}  Bxe5 {[%clk 0:01:49]} 23. Nc3 {[%clk 0:00:52]}  Qa5 {[%clk 0:01:31]} 24. Qc2 {[%clk 0:00:49]}  Qa6 {[%clk 0:01:20]} 25. Rd1 {[%clk 0:00:48]}  e6 {[%clk 0:01:10]} 26. dxe6 {[%clk 0:00:45]}  Nxe6 {[%clk 0:01:10]} 27. Nd5 {[%clk 0:00:29]}  R4b7 {[%clk 0:00:57]} 28. Qd3 {[%clk 0:00:11]}  Qxd3 {[%clk 0:00:52]} 29. Raxd3 {[%clk 0:00:12]}  Bxb2 {[%clk 0:00:48]} 30. Bxb2 {[%clk 0:00:13]}  Rxb2 {[%clk 0:00:48]} 31. Ne7+ {[%clk 0:00:13]}  Kf8 {[%clk 0:00:46]} 32. Nc6 {[%clk 0:00:13]}  Ra8 {[%clk 0:00:38]} 33. Rxd6 {[%clk 0:00:14]}  Rxa4 {[%clk 0:00:39]} 34. e5 {[%clk 0:00:08]}  Raa2 {[%clk 0:00:36]} 35. Rf1 {[%clk 0:00:07]}  c4 {[%clk 0:00:31]} 36. Nd4 {[%clk 0:00:07]}  Nxd4 {[%clk 0:00:25]} 37. Rxd4 {[%clk 0:00:08]}  c3 {[%clk 0:00:25]} 38. Rc4 {[%clk 0:00:08]}  c2 {[%clk 0:00:17]} 39. Kh2 {[%clk 0:00:09]}  Ke7 {[%clk 0:00:15]} 40. Rc1 {[%clk 0:00:09]}  Ke6 {[%clk 0:00:15]} 41. f4 {[%clk 0:00:08]}  h5 {[%clk 0:00:15]} 42. Kg3 {[%clk 0:00:08]}  Kf5 {[%clk 0:00:15]} 43. Rc3 {[%clk 0:00:07]}  h4+ {[%clk 0:00:10]} 44. Kf3 {[%clk 0:00:07]}  Rb1 {[%clk 0:00:06]} 45. R1xc2 {[%clk 0:00:06]}  Rxc2 {[%clk 0:00:05]} 46. Rxc2 {[%clk 0:00:07]}  Rb3+ {[%clk 0:00:05]} 47. Kf2 {[%clk 0:00:06]}  Kxf4 {[%clk 0:00:06]} 48. Rc4+ {[%clk 0:00:07]}  Kg5 {[%clk 0:00:05]} 49. Rg4+ {[%clk 0:00:07]}  Kh5 {[%clk 0:00:05]} 50. Rf4 {[%clk 0:00:07]}  Rb7 {[%clk 0:00:05]} 51. Ke3 {[%clk 0:00:07]}  Re7 {[%clk 0:00:06]} 52. Kd4 {[%clk 0:00:07]}  Kg5 {[%clk 0:00:05]} 53. Rg4+ {[%clk 0:00:07]}  Kh5 {[%clk 0:00:06]} 54. Kd5 {[%clk 0:00:06]}  g5 {[%clk 0:00:06]} 55. Kd6 {[%clk 0:00:06]}  Re6+ {[%clk 0:00:06]} 56. Kd5 {[%clk 0:00:06]}  Kg6 {[%clk 0:00:07]} 57. Re4 {[%clk 0:00:03]}  Kf5 {[%clk 0:00:07]} 58. Re1 {[%clk 0:00:04]}  Ra6 {[%clk 0:00:06]} 59. Rf1+ {[%clk 0:00:04]}  Kg6 {[%clk 0:00:07]} 60. Rf2 {[%clk 0:00:03]}  Ra5+ {[%clk 0:00:07]} 61. Kd6 {[%clk 0:00:04]}  Ra6+ {[%clk 0:00:08]} 62. Kd5 {[%clk 0:00:04]}  Rb6 {[%clk 0:00:07]} 63. Kd4 {[%clk 0:00:04]}  Rb5 {[%clk 0:00:06]} 64. Ke4 {[%clk 0:00:04]}  Rb4+ {[%clk 0:00:05]} 65. Kd5 {[%clk 0:00:05]}  Rb6 {[%clk 0:00:04]} 66. Kc5 {[%clk 0:00:04]}  Re6 {[%clk 0:00:04]} 67. Kd4 {[%clk 0:00:05]}  Ra6 {[%clk 0:00:04]} 68. Kd5 {[%clk 0:00:05]} 1/2-1/2


[Site "https://www.chess.com"]

[Event "Titled Tuesday Blitz February 14 Early 2023"]
[White "Al-Tarboush, Ward"]
[Black "surrenderPLS"]
[WhiteFideId "7601450"]
[WhiteElo "2256"]
[BlackElo "2491"]
[Result "0-1"]
[Round "10"]
[TimeControl "180+2"]
[Date "2023.02.14"]
[WhiteClock "0:00:29"]
[BlackClock "0:00:09"]

1. e4 {[%clk 0:02:44]}  c5 {[%clk 0:02:59]} 2. Nf3 {[%clk 0:02:44]}  d6 {[%clk 0:02:59]} 3. d4 {[%clk 0:02:45]}  cxd4 {[%clk 0:03:00]} 4. Nxd4 {[%clk 0:02:46]}  Nf6 {[%clk 0:03:01]} 5. Nc3 {[%clk 0:02:47]}  e5 {[%clk 0:03:02]} 6. Nb3 {[%clk 0:02:45]}  Be7 {[%clk 0:03:01]} 7. h4 {[%clk 0:02:44]}  Be6 {[%clk 0:02:58]} 8. Bg5 {[%clk 0:02:41]}  Nbd7 {[%clk 0:02:56]} 9. Qd2 {[%clk 0:02:40]}  h6 {[%clk 0:02:56]} 10. Be3 {[%clk 0:02:37]}  Ng4 {[%clk 0:02:56]} 11. O-O-O {[%clk 0:02:36]}  Nxe3 {[%clk 0:02:56]} 12. Qxe3 {[%clk 0:02:37]}  Bxh4 {[%clk 0:02:56]} 13. Kb1 {[%clk 0:02:36]}  Be7 {[%clk 0:02:56]} 14. g3 {[%clk 0:02:30]}  Nf6 {[%clk 0:02:56]} 15. f4 {[%clk 0:02:30]}  Qb6 {[%clk 0:02:39]} 16. Qd2 {[%clk 0:02:23]}  Rc8 {[%clk 0:02:30]} 17. Bb5+ {[%clk 0:02:21]}  Kf8 {[%clk 0:02:21]} 18. f5 {[%clk 0:02:21]}  Bxb3 {[%clk 0:02:16]} 19. axb3 {[%clk 0:02:13]}  Rxc3 {[%clk 0:02:15]} 20. Qxc3 {[%clk 0:02:13]}  Qxb5 {[%clk 0:02:14]} 21. Qc8+ {[%clk 0:02:13]}  Ne8 {[%clk 0:02:04]} 22. Rd5 {[%clk 0:02:13]}  Qc6 {[%clk 0:02:02]} 23. Qa8 {[%clk 0:02:13]}  a6 {[%clk 0:02:00]} 24. g4 {[%clk 0:02:05]}  f6 {[%clk 0:01:50]} 25. Rh3 {[%clk 0:02:05]}  Kf7 {[%clk 0:01:48]} 26. Rc3 {[%clk 0:02:05]}  Qd7 {[%clk 0:01:46]} 27. Qa7 {[%clk 0:01:50]}  h5 {[%clk 0:01:38]} 28. gxh5 {[%clk 0:01:50]}  Rxh5 {[%clk 0:01:39]} 29. Qg1 {[%clk 0:01:51]}  Rg5 {[%clk 0:01:36]} 30. Qh2 {[%clk 0:01:51]}  Nc7 {[%clk 0:01:36]} 31. Rd1 {[%clk 0:01:44]}  Nb5 {[%clk 0:01:35]} 32. Rcd3 {[%clk 0:01:42]}  Qc6 {[%clk 0:01:31]} 33. Rd5 {[%clk 0:01:42]}  Nc7 {[%clk 0:01:30]} 34. R5d2 {[%clk 0:01:19]}  Qxe4 {[%clk 0:01:28]} 35. Re2 {[%clk 0:01:20]}  Qxf5 {[%clk 0:01:26]} 36. Qh4 {[%clk 0:01:21]}  Ne6 {[%clk 0:01:20]} 37. Qc4 {[%clk 0:01:21]}  Rg4 {[%clk 0:01:18]} 38. Qc8 {[%clk 0:01:20]}  Nd4 {[%clk 0:01:14]} 39. Qc4+ {[%clk 0:01:20]}  Qe6 {[%clk 0:01:06]} 40. Rf2 {[%clk 0:01:01]}  Qxc4 {[%clk 0:01:04]} 41. bxc4 {[%clk 0:01:02]}  f5 {[%clk 0:01:00]} 42. c3 {[%clk 0:01:02]}  Ne6 {[%clk 0:00:50]} 43. Rxf5+ {[%clk 0:01:02]}  Ke8 {[%clk 0:00:50]} 44. b3 {[%clk 0:00:59]}  g6 {[%clk 0:00:44]} 45. Rf2 {[%clk 0:00:59]}  Nc5 {[%clk 0:00:41]} 46. Kc2 {[%clk 0:00:59]}  Rg3 {[%clk 0:00:40]} 47. Rh2 {[%clk 0:00:57]}  e4 {[%clk 0:00:28]} 48. Re1 {[%clk 0:00:56]}  Bf6 {[%clk 0:00:26]} 49. b4 {[%clk 0:00:54]}  Rxc3+ {[%clk 0:00:24]} 50. Kb1 {[%clk 0:00:45]}  Rb3+ {[%clk 0:00:20]} 51. Ka2 {[%clk 0:00:45]}  Rxb4 {[%clk 0:00:21]} 52. Rf1 {[%clk 0:00:40]}  Ra4+ {[%clk 0:00:20]} 53. Kb1 {[%clk 0:00:40]}  Ra1+ {[%clk 0:00:20]} 54. Kc2 {[%clk 0:00:41]}  Rxf1 {[%clk 0:00:21]} 55. Rh7 {[%clk 0:00:39]}  e3 {[%clk 0:00:20]} 56. Rh3 {[%clk 0:00:40]}  Bd4 {[%clk 0:00:19]} 57. Rh4 {[%clk 0:00:38]}  e2 {[%clk 0:00:18]} 58. Rh2 {[%clk 0:00:32]}  b5 {[%clk 0:00:12]} 59. cxb5 {[%clk 0:00:29]}  e1=Q {[%clk 0:00:10]} 60. Rh8+ {[%clk 0:00:29]}  Bxh8 {[%clk 0:00:09]} 0-1


[Site "https://www.chess.com"]

[Event "Titled Tuesday Blitz February 14 Early 2023"]
[White "Shapiro, Viktor"]
[Black "Nguyen Hong Nhung"]
[WhiteFideId "4175700"]
[BlackFideId "12412201"]
[WhiteElo "2192"]
[BlackElo "2003"]
[Result "0-1"]
[Round "10"]
[TimeControl "180+2"]
[Date "2023.02.14"]
[WhiteClock "0:00:10"]
[BlackClock "0:00:21"]

1. c4 {[%clk 0:02:09]}  f5 {[%clk 0:02:56]} 2. Nc3 {[%clk 0:02:09]}  Nf6 {[%clk 0:02:57]} 3. g3 {[%clk 0:02:10]}  e5 {[%clk 0:02:57]} 4. Bg2 {[%clk 0:02:10]}  d6 {[%clk 0:02:57]} 5. d3 {[%clk 0:02:11]}  g6 {[%clk 0:02:57]} 6. Nf3 {[%clk 0:02:09]}  Bg7 {[%clk 0:02:58]} 7. O-O {[%clk 0:02:10]}  O-O {[%clk 0:02:58]} 8. Rb1 {[%clk 0:02:10]}  Nc6 {[%clk 0:02:57]} 9. b4 {[%clk 0:02:10]}  h6 {[%clk 0:02:57]} 10. b5 {[%clk 0:02:11]}  Ne7 {[%clk 0:02:57]} 11. c5 {[%clk 0:02:11]}  g5 {[%clk 0:02:53]} 12. cxd6 {[%clk 0:02:11]}  cxd6 {[%clk 0:02:44]} 13. Qb3+ {[%clk 0:02:11]}  Kh7 {[%clk 0:02:38]} 14. e4 {[%clk 0:02:01]}  Ng6 {[%clk 0:02:22]} 15. Bxg5 {[%clk 0:01:46]}  hxg5 {[%clk 0:02:12]} 16. Nxg5+ {[%clk 0:01:46]}  Kh6 {[%clk 0:02:09]} 17. Nf7+ {[%clk 0:01:46]}  Rxf7 {[%clk 0:02:09]} 18. Qxf7 {[%clk 0:01:47]}  f4 {[%clk 0:02:01]} 19. Nd5 {[%clk 0:01:29]}  Nxd5 {[%clk 0:01:56]} 20. exd5 {[%clk 0:01:29]}  Bd7 {[%clk 0:01:50]} 21. Be4 {[%clk 0:01:27]}  Be8 {[%clk 0:01:48]} 22. Qxb7 {[%clk 0:01:18]}  Rb8 {[%clk 0:01:41]} 23. Qxa7 {[%clk 0:01:18]}  Qc8 {[%clk 0:01:07]} 24. Rfc1 {[%clk 0:01:13]}  Qb7 {[%clk 0:00:58]} 25. Qxb7 {[%clk 0:01:10]}  Rxb7 {[%clk 0:00:59]} 26. a4 {[%clk 0:01:10]}  Kg5 {[%clk 0:00:52]} 27. Rc8 {[%clk 0:01:06]}  Bd7 {[%clk 0:00:51]} 28. Rg8 {[%clk 0:01:04]}  Kf6 {[%clk 0:00:50]} 29. h4 {[%clk 0:00:58]}  Ne7 {[%clk 0:00:46]} 30. Ra8 {[%clk 0:00:53]}  fxg3 {[%clk 0:00:43]} 31. fxg3 {[%clk 0:00:52]}  Bh6 {[%clk 0:00:43]} 32. Rf1+ {[%clk 0:00:47]}  Kg7 {[%clk 0:00:43]} 33. Kg2 {[%clk 0:00:46]}  Nc8 {[%clk 0:00:33]} 34. Bf5 {[%clk 0:00:20]}  Nb6 {[%clk 0:00:30]} 35. Ra6 {[%clk 0:00:19]}  Nxd5 {[%clk 0:00:29]} 36. Bxd7 {[%clk 0:00:18]}  Ne3+ {[%clk 0:00:29]} 37. Kh3 {[%clk 0:00:17]}  Nxf1 {[%clk 0:00:29]} 38. Bc6 {[%clk 0:00:17]}  Rf7 {[%clk 0:00:28]} 39. g4 {[%clk 0:00:17]}  Be3 {[%clk 0:00:26]} 40. g5 {[%clk 0:00:17]}  Rf2 {[%clk 0:00:25]} 41. b6 {[%clk 0:00:16]}  Bf4 {[%clk 0:00:22]} 42. b7 {[%clk 0:00:15]}  Ne3 {[%clk 0:00:21]} 43. Bg2 {[%clk 0:00:10]}  Rxg2 {[%clk 0:00:21]} 0-1


[Site "https://www.chess.com"]

[Event "Titled Tuesday Blitz February 14 Early 2023"]
[White "Cori T., Deysi"]
[Black "Womacka, Mathias"]
[WhiteFideId "3801934"]
[BlackFideId "4611390"]
[WhiteElo "2362"]
[BlackElo "2396"]
[Result "1/2-1/2"]
[Round "10"]
[TimeControl "180+2"]
[Date "2023.02.14"]
[WhiteClock "0:00:05"]
[BlackClock "0:00:37"]

1. Nf3 {[%clk 0:03:00]}  c5 {[%clk 0:02:59]} 2. e3 {[%clk 0:03:00]}  Nf6 {[%clk 0:02:57]} 3. d4 {[%clk 0:03:01]}  e6 {[%clk 0:02:58]} 4. Nbd2 {[%clk 0:03:01]}  Nc6 {[%clk 0:02:54]} 5. a3 {[%clk 0:03:02]}  cxd4 {[%clk 0:02:51]} 6. exd4 {[%clk 0:03:01]}  d5 {[%clk 0:02:51]} 7. Bd3 {[%clk 0:03:01]}  Be7 {[%clk 0:02:50]} 8. O-O {[%clk 0:03:02]}  O-O {[%clk 0:02:50]} 9. c3 {[%clk 0:03:02]}  b6 {[%clk 0:02:46]} 10. Ne5 {[%clk 0:03:02]}  Bb7 {[%clk 0:02:45]} 11. Qf3 {[%clk 0:02:59]}  Qc7 {[%clk 0:02:31]} 12. Re1 {[%clk 0:02:58]}  Bd6 {[%clk 0:02:22]} 13. Ng4 {[%clk 0:02:51]}  Nxg4 {[%clk 0:02:19]} 14. Qxg4 {[%clk 0:02:52]}  Bxh2+ {[%clk 0:02:17]} 15. Kh1 {[%clk 0:02:52]}  Bf4 {[%clk 0:02:16]} 16. g3 {[%clk 0:02:47]}  Bh6 {[%clk 0:02:09]} 17. Nf3 {[%clk 0:02:44]}  Bxc1 {[%clk 0:02:07]} 18. Raxc1 {[%clk 0:02:45]}  h6 {[%clk 0:02:00]} 19. Kg2 {[%clk 0:02:43]}  Rae8 {[%clk 0:01:50]} 20. Nh4 {[%clk 0:02:40]}  Ne7 {[%clk 0:01:38]} 21. Re3 {[%clk 0:02:32]}  g6 {[%clk 0:01:33]} 22. Rce1 {[%clk 0:02:30]}  Kg7 {[%clk 0:01:30]} 23. Nf3 {[%clk 0:02:24]}  Kh7 {[%clk 0:01:07]} 24. Rh1 {[%clk 0:02:22]}  Nf5 {[%clk 0:01:05]} 25. Bxf5 {[%clk 0:01:46]}  exf5 {[%clk 0:01:06]} 26. Qg5 {[%clk 0:01:46]}  h5 {[%clk 0:01:00]} 27. Rxh5+ {[%clk 0:01:45]}  gxh5 {[%clk 0:01:00]} 28. Qxf5+ {[%clk 0:01:41]}  Kg7 {[%clk 0:00:57]} 29. Qg5+ {[%clk 0:01:40]}  Kh7 {[%clk 0:00:56]} 30. Qxh5+ {[%clk 0:01:41]}  Kg7 {[%clk 0:00:56]} 31. Qg4+ {[%clk 0:01:38]}  Kh8 {[%clk 0:00:52]} 32. Qh4+ {[%clk 0:01:14]}  Kg7 {[%clk 0:00:51]} 33. Qg5+ {[%clk 0:01:15]}  Kh7 {[%clk 0:00:51]} 34. Qh4+ {[%clk 0:00:57]}  Kg7 {[%clk 0:00:50]} 35. Qg4+ {[%clk 0:00:57]}  Kh8 {[%clk 0:00:50]} 36. Qh5+ {[%clk 0:00:21]}  Kg7 {[%clk 0:00:47]} 37. Nh4 {[%clk 0:00:21]}  Rxe3 {[%clk 0:00:40]} 38. Qg5+ {[%clk 0:00:18]}  Kh7 {[%clk 0:00:39]} 39. Nf5 {[%clk 0:00:09]}  f6 {[%clk 0:00:38]} 40. Qh5+ {[%clk 0:00:08]}  Kg8 {[%clk 0:00:37]} 41. Qg6+ {[%clk 0:00:08]}  Kh8 {[%clk 0:00:37]} 42. Qh6+ {[%clk 0:00:06]}  Kg8 {[%clk 0:00:38]} 43. Qg6+ {[%clk 0:00:06]}  Kh8 {[%clk 0:00:38]} 44. Qh5+ {[%clk 0:00:05]}  Kg8 {[%clk 0:00:37]} 45. Qg6+ {[%clk 0:00:05]} 1/2-1/2


[Site "https://www.chess.com"]

[Event "Titled Tuesday Blitz February 14 Early 2023"]
[White "Grycel, Kamil"]
[Black "Prado Lobo, Jonas"]
[WhiteFideId "1115499"]
[BlackFideId "32050666"]
[WhiteElo "2315"]
[BlackElo "2313"]
[Result "0-1"]
[Round "10"]
[TimeControl "180+2"]
[Date "2023.02.14"]
[WhiteClock "0:00:04"]
[BlackClock "0:00:17"]

1. b3 {[%clk 0:02:53]}  Nf6 {[%clk 0:02:57]} 2. Bb2 {[%clk 0:02:49]}  g6 {[%clk 0:02:58]} 3. Bxf6 {[%clk 0:02:49]}  exf6 {[%clk 0:02:59]} 4. c4 {[%clk 0:02:49]}  Bg7 {[%clk 0:02:59]} 5. Nc3 {[%clk 0:02:49]}  f5 {[%clk 0:02:58]} 6. Rc1 {[%clk 0:02:49]}  b6 {[%clk 0:02:56]} 7. Nf3 {[%clk 0:02:47]}  Bb7 {[%clk 0:02:57]} 8. e3 {[%clk 0:02:48]}  O-O {[%clk 0:02:53]} 9. g3 {[%clk 0:02:47]}  Na6 {[%clk 0:02:32]} 10. d4 {[%clk 0:02:46]}  g5 {[%clk 0:02:25]} 11. Bg2 {[%clk 0:02:39]}  f4 {[%clk 0:02:25]} 12. gxf4 {[%clk 0:02:23]}  gxf4 {[%clk 0:02:26]} 13. e4 {[%clk 0:02:17]}  Re8 {[%clk 0:02:10]} 14. O-O {[%clk 0:02:06]}  Nb4 {[%clk 0:01:41]} 15. Qd2 {[%clk 0:01:45]}  Qf6 {[%clk 0:01:31]} 16. Nd5 {[%clk 0:01:28]}  Nxd5 {[%clk 0:01:23]} 17. exd5 {[%clk 0:01:28]}  c6 {[%clk 0:01:12]} 18. Ne5 {[%clk 0:01:21]}  Qf5 {[%clk 0:01:06]} 19. dxc6 {[%clk 0:00:43]}  dxc6 {[%clk 0:01:01]} 20. Qd3 {[%clk 0:00:33]}  Rxe5 {[%clk 0:01:00]} 21. Qf3 {[%clk 0:00:19]}  Re6 {[%clk 0:00:57]} 22. d5 {[%clk 0:00:18]}  cxd5 {[%clk 0:00:53]} 23. cxd5 {[%clk 0:00:19]}  Rg6 {[%clk 0:00:52]} 24. Kh1 {[%clk 0:00:18]}  Rd8 {[%clk 0:00:47]} 25. Rfd1 {[%clk 0:00:17]}  Bf8 {[%clk 0:00:36]} 26. Rc7 {[%clk 0:00:16]}  Bxd5 {[%clk 0:00:29]} 27. Qxd5 {[%clk 0:00:03]}  Rxd5 {[%clk 0:00:28]} 28. Bxd5 {[%clk 0:00:04]}  Rg7 {[%clk 0:00:19]} 29. f3 {[%clk 0:00:04]}  Qh3 {[%clk 0:00:17]} 30. Rd2 {[%clk 0:00:04]}  Qf1# {[%clk 0:00:17]} 0-1


[Site "https://www.chess.com"]